bitfinex/quotes_BTCUSD_20250218
["timestamp","ask_amount","ask_price","bid_price","bid_amount"]
[1739845920388,1.447185,96346.0,96345.0,0.0779404]
[1739845920601,1.329296,96346.0,96345.0,0.0779404]
[1739845922237,1.43179965,96346.0,96345.0,0.0779404]
[1739845922681,1.329296,96346.0,96345.0,0.0779404]
[1739845923888,0.510187,96346.0,96345.0,0.0779404]
[1739845924098,0.157688,96346.0,96345.0,0.0779404]
[1739845924299,2.452783,96346.0,96345.0,0.0779404]
[1739845924506,0.86163,96346.0,96345.0,0.0779404]
[1739845924751,0.562314,96346.0,96345.0,0.0779404]
[1739845925306,0.001,96346.0,96345.0,0.09029848]
[1739845925675,0.001,96346.0,96345.0,0.1266404]
[1739845925892,0.002,96346.0,96345.0,0.1266404]
[1739845926066,0.001,96346.0,96345.0,0.1266404]
[1739845926282,0.15568,96351.0,96346.0,0.0803]
[1739845926513,0.207569,96354.0,96346.0,0.0803]
[1739845926720,0.07778246,96360.0,96347.0,0.0765]
[1739845926873,0.155669,96358.0,96350.0,0.0462]
[1739845927082,0.460112,96357.0,96351.0,0.0765]
[1739845927292,0.638575,96359.0,96352.0,0.0462]
[1739845927491,0.031199,96372.0,96351.0,0.08890404]
[1739845927492,0.207484,96393.0,96359.0,0.233767]
[1739845927691,0.207523,96375.0,96360.0,0.128]
[1739845927889,0.22378609,96373.0,96360.0,0.128]
[1739845928118,0.07778246,96370.0,96360.0,0.128]
[1739845928565,0.01625909,96373.0,96360.0,0.128]
[1739845928797,0.155649,96371.0,96360.0,0.128]
[1739845929548,0.0992397,96361.0,96360.0,0.21112956]
[1739845929755,0.01625909,96373.0,96363.0,0.0753]
[1739845929972,0.17203567,96373.0,96364.0,0.125]
[1739845930159,0.105307,96372.0,96365.0,0.0779]
[1739845930329,0.17203567,96373.0,96367.0,0.0471]
[1739845930330,0.01639067,96373.0,96367.0,0.0471]
[1739845930558,0.128693,96372.0,96368.0,0.1267208]
[1739845930760,0.128693,96372.0,96369.0,0.0779]
[1739845931246,0.128693,96372.0,96371.0,0.155648]
[1739845931247,0.02323025,96372.0,96371.0,0.155648]
[1739845931451,0.02323025,96372.0,96371.0,0.281548]
[1739845931631,0.00013158,96373.0,96371.0,0.201948]
[1739845931837,0.02414953,96373.0,96372.0,0.128508]
[1739845932054,0.00013158,96373.0,96372.0,0.128508]
[1739845932270,0.00113158,96373.0,96372.0,0.128508]
[1739845932682,0.00013158,96373.0,96372.0,0.128508]
[1739845932840,0.00113158,96373.0,96372.0,0.128508]
[1739845933275,0.00013158,96373.0,96372.0,0.128508]
[1739845933491,0.00013158,96373.0,96372.0,0.0806]
[1739845934058,0.02382601,96373.0,96372.0,0.0816]
[1739845939526,0.17947101,96373.0,96372.0,0.0816]
[1739845939944,2.47556601,96373.0,96372.0,0.0816]
[1739845942364,2.45726501,96373.0,96372.0,0.0816]
[1739845942724,2.00573501,96373.0,96372.0,0.0816]
[1739845942939,1.97172001,96373.0,96372.0,0.0816]
[1739845943177,1.85814001,96373.0,96372.0,0.0816]
[1739845943384,1.85814001,96373.0,96372.0,0.0806]
[1739845943879,1.85814001,96373.0,96351.0,0.155679]
[1739845943880,0.155663,96362.0,96361.0,0.0003406]
[1739845944084,0.305663,96362.0,96361.0,0.0003406]
[1739845944292,2.601758,96362.0,96361.0,0.0003406]
[1739845945588,2.71426165,96362.0,96361.0,0.0003406]
[1739845945800,2.8117653,96362.0,96361.0,0.0003406]
[1739845946025,2.8983228,96362.0,96361.0,0.0003406]
[1739845946234,2.9043228,96362.0,96361.0,0.0013406]
[1739845946444,2.8983228,96362.0,96361.0,0.0003406]
[1739845946831,2.8933228,96362.0,96361.0,0.0003406]
[1739845947041,2.9003228,96362.0,96361.0,0.0003406]
[1739845947445,2.91971833,96362.0,96361.0,0.0003406]
[1739845947671,2.91271833,96362.0,96361.0,0.0003406]
[1739845947878,2.94671833,96362.0,96361.0,6e-07]
[1739845948121,0.65062333,96362.0,96361.0,6e-07]
[1739845948326,0.64662333,96362.0,96361.0,6e-07]
[1739845948532,0.65362333,96362.0,96361.0,6e-07]
[1739845948933,0.98232333,96362.0,96361.0,6e-07]
[1739845949500,0.305688,96346.0,96338.0,0.0003404]
[1739845949701,0.5854277,96346.0,96338.0,0.0003404]
[1739845950130,3.01968451,96346.0,96338.0,0.0003404]
[1739845950331,2.91718086,96346.0,96338.0,0.0003404]
[1739845951279,2.93018086,96346.0,96338.0,0.0003404]
[1739845951431,2.92418086,96346.0,96338.0,0.0003404]
[1739845951635,2.94531549,96346.0,96338.0,0.0003404]
[1739845952669,2.92905286,96346.0,96338.0,0.0003404]
[1739845952871,2.96473018,96346.0,96338.0,0.0003404]
[1739845953078,2.97173018,96346.0,96338.0,0.0003404]
[1739845953667,2.96473018,96346.0,96338.0,0.0003404]
[1739845953897,2.97173018,96346.0,96338.0,0.0003404]
[1739845954116,2.96473018,96346.0,96338.0,0.0003404]
[1739845954308,2.97073018,96346.0,96338.0,0.0003404]
[1739845954558,0.3057,96339.0,96338.0,0.0003404]
[1739845954751,2.601795,96339.0,96338.0,0.0003404]
[1739845955044,2.70429865,96339.0,96338.0,0.0003404]
[1739845955432,2.71398778,96339.0,96338.0,0.0003404]
[1739845956196,2.72314878,96339.0,96338.0,0.0003404]
[1739845956381,2.747366,96339.0,96338.0,0.0003404]
[1739845956743,2.77526789,96339.0,96338.0,0.0003404]
[1739845956949,2.84192668,96339.0,96338.0,0.0003404]
[1739845957147,2.84792668,96339.0,96338.0,0.0003404]
[1739845957372,2.84292668,96339.0,96338.0,0.0003404]
[1739845957571,2.84192668,96339.0,96338.0,0.0003404]
[1739845957891,2.84392668,96339.0,96338.0,0.0003404]
[1739845958095,2.84657907,96339.0,96338.0,0.0003404]
[1739845958310,2.85257907,96339.0,96338.0,0.0003404]
[1739845958460,2.84557907,96339.0,96338.0,0.0003404]
[1739845958849,2.85257907,96339.0,96338.0,0.0003404]
[1739845960937,2.81892824,96339.0,96338.0,0.0003404]
[1739845961680,2.75054431,96339.0,96338.0,0.0003404]
[1739845961886,2.74354431,96339.0,96338.0,0.0003404]
[1739845962087,2.73754431,96339.0,96338.0,0.0003404]
[1739845962317,2.74354431,96339.0,96338.0,0.0003404]
[1739845963104,2.73385518,96339.0,96338.0,0.0003404]
[1739845963307,2.74085518,96339.0,96338.0,0.0003404]
[1739845963741,2.72785518,96339.0,96338.0,0.0003404]
[1739845964046,2.73885518,96339.0,96338.0,0.0003404]
[1739845964204,2.73385518,96339.0,96338.0,0.0003404]
[1739845964607,0.79525918,96339.0,96338.0,0.0003404]
[1739845964784,2.73885518,96339.0,96338.0,0.0003404]
[1739845964991,2.63219053,96339.0,96338.0,0.0003404]
[1739845965197,1.00785853,96339.0,96338.0,0.0003404]
[1739845965405,0.76743853,96339.0,96338.0,0.0819404]
[1739845966314,0.47800225,96339.0,96338.0,0.0819404]
[1739845966557,0.20280925,96339.0,96338.0,0.0819404]
[1739845967015,0.04665925,96339.0,96338.0,0.0819404]
[1739845967212,0.04665925,96339.0,96338.0,0.1310404]
[1739845967444,0.04665925,96339.0,96338.0,0.15974958]
[1739845967639,0.04665925,96339.0,96338.0,0.1310404]
[1739845968002,0.23764625,96339.0,96338.0,0.1310404]
[1739845968188,0.77546625,96339.0,96338.0,0.1310404]
[1739845968395,0.77046625,96339.0,96338.0,0.1310404]
[1739845968612,0.77146625,96339.0,96338.0,0.1310404]
[1739845969734,0.77046625,96339.0,96338.0,0.1310404]
[1739845971318,0.75107072,96339.0,96338.0,0.1310404]
[1739845971538,0.01626372,96339.0,96338.0,0.1310404]
[1739845971720,0.01626372,96339.0,96338.0,0.14417848]
[1739845971933,0.03567631,96339.0,96338.0,0.14417848]
[1739845972522,0.01941259,96339.0,96338.0,0.14417848]
[1739845973074,0.155694,96343.0,96339.0,0.0779]
[1739845973291,0.15,96345.0,96339.0,0.0779]
[1739845973714,0.30569,96345.0,96339.0,0.0779]
[1739845974393,0.003,96343.0,96339.0,0.0779]
[1739845974595,0.002,96343.0,96339.0,0.0779]
[1739845974798,0.30569,96345.0,96339.0,0.0779]
[1739845975051,0.152,96345.0,96339.0,0.0779]
[1739845975351,0.15,96345.0,96339.0,0.0779]
[1739845975504,0.001,96343.0,96339.0,0.0779]
[1739845975915,0.155694,96343.0,96339.0,0.0779]
[1739845977881,0.155692,96344.0,96340.0,0.0815]
[1739845978024,0.002,96343.0,96342.0,0.0815]
[1739845979044,0.003,96343.0,96342.0,0.0815]
[1739845980411,0.001,96343.0,96342.0,0.0815]
[1739845980610,0.002,96344.0,96342.0,0.0815]
[1739845980815,0.001,96343.0,96342.0,0.0815]
[1739845981016,0.001,96343.0,96342.0,0.11027788]
[1739845981345,0.001,96343.0,96342.0,0.0815]
[1739845981495,0.003,96343.0,96342.0,0.237195]
[1739845981929,0.003,96343.0,96342.0,0.0815]
[1739845983488,0.2784098,96346.0,96342.0,0.0815]
[1739845983691,0.607071,96345.0,96342.0,0.0815]
[1739845983869,0.2784098,96346.0,96342.0,0.0815]
[1739845984072,0.457249,96345.0,96342.0,0.0815]
[1739845985205,0.457249,96345.0,96342.0,0.11027848]
[1739845985360,0.2814098,96346.0,96342.0,0.02877848]
[1739845985618,0.208922,96345.0,96342.0,0.0753]
[1739845985822,0.002,96345.0,96342.0,0.0753]
[1739845986910,0.004,96345.0,96342.0,0.0753]
[1739845987464,0.002,96345.0,96342.0,0.0753]
[1739845989004,0.004,96345.0,96342.0,0.0753]
[1739845989702,0.155693,96343.0,96342.0,0.0753]
[1739845989885,2.099289,96343.0,96342.0,0.0756408]
[1739845990877,0.157693,96343.0,96342.0,0.0756408]
[1739845991075,2.101289,96343.0,96342.0,0.0756408]
[1739845991476,2.12346691,96343.0,96342.0,0.0003408]
[1739845992750,1.363156,96343.0,96342.0,0.0003408]
[1739845992962,0.003,96343.0,96342.0,0.1268408]
[1739845993170,0.003,96343.0,96342.0,0.13959296]
[1739846000432,0.04775769,96346.0,96342.0,0.13959296]
[1739846000684,0.15,96359.0,96342.0,0.13959296]
[1739846000897,0.15,96355.0,96342.0,0.13959296]
[1739846001101,1.069016,96354.0,96342.0,0.13959296]
[1739846001279,0.155682,96350.0,96343.0,0.01402738]
[1739846001714,0.155684,96349.0,96343.0,0.01402738]
[1739846001841,0.207572,96353.0,96343.0,0.01402738]
[1739846002077,0.443364,96352.0,96343.0,0.01402738]
[1739846002274,0.155681,96351.0,96344.0,0.01412086]
[1739846002498,0.155682,96350.0,96344.0,0.01412086]
[1739846003007,0.297913,96349.0,96344.0,0.01412086]
[1739846003214,0.0001704,96347.0,96344.0,0.01412086]
[1739846003574,0.0001704,96347.0,96342.0,0.1268408]
[1739846003775,0.155689,96346.0,96342.0,0.1268408]
[1739846004455,0.155693,96344.0,96342.0,0.1268408]
[1739846005003,0.15569,96345.0,96342.0,0.1268408]
[1739846005406,0.1588584,96347.0,96342.0,0.1268408]
[1739846005611,0.1588584,96347.0,96343.0,0.01275216]
[1739846005837,0.001,96344.0,96343.0,0.01275216]
[1739846006314,0.002,96345.0,96343.0,0.01275216]
[1739846006525,0.004,96345.0,96343.0,0.01275216]
[1739846006693,0.002,96345.0,96343.0,0.01275216]
[1739846006898,0.002,96345.0,96342.0,0.1268408]
[1739846007148,0.002,96344.0,96342.0,0.1268408]
[1739846008102,0.003,96344.0,96342.0,0.1268408]
[1739846008315,0.0001704,96347.0,96342.0,0.1268408]
[1739846008729,0.001,96344.0,96342.0,0.1268408]
[1739846008936,0.001,96344.0,96343.0,0.01275216]
[1739846009674,0.001,96344.0,96342.0,0.1268408]
[1739846010295,0.003,96344.0,96342.0,0.1268408]
[1739846011057,0.002,96344.0,96342.0,0.1268408]
[1739846011271,0.003,96344.0,96342.0,0.1268408]
[1739846011438,0.002,96344.0,96342.0,0.1268408]
[1739846011647,0.0001704,96347.0,96343.0,0.01275216]
[1739846011848,0.003,96344.0,96343.0,0.01275216]
[1739846012461,0.001,96344.0,96342.0,0.1268408]
[1739846013070,0.207585,96346.0,96342.0,0.1268408]
[1739846013540,0.155692,96345.0,96342.0,0.1268408]
[1739846014739,0.002,96344.0,96342.0,0.1268408]
[1739846015120,0.155692,96344.0,96342.0,0.1268408]
[1739846015967,0.155692,96344.0,96343.0,0.0003406]
[1739846016143,0.156692,96344.0,96343.0,0.0003406]
[1739846016362,0.158692,96344.0,96343.0,0.0003406]
[1739846016729,0.003,96344.0,96343.0,0.0003406]
[1739846017554,0.002,96344.0,96343.0,0.0003406]
[1739846017756,0.155692,96344.0,96343.0,0.0003406]
[1739846017957,0.003,96344.0,96343.0,0.0003406]
[1739846018365,0.158692,96344.0,96343.0,0.0003406]
[1739846018931,0.003,96344.0,96343.0,0.0003406]
[1739846019762,0.158692,96344.0,96343.0,0.0003406]
[1739846020947,0.003,96344.0,96343.0,0.0003406]
[1739846021329,0.158692,96344.0,96343.0,0.01312682]
[1739846022871,0.158692,96344.0,96343.0,0.0003406]
[1739846023388,0.02249386,96344.0,96343.0,0.0003406]
[1739846024303,0.02249386,96344.0,96343.0,0.38323725]
[1739846024679,0.003,96344.0,96343.0,0.38323725]
[1739846025115,0.001,96344.0,96343.0,0.38323725]
[1739846025324,0.0001703,96346.0,96343.0,0.4892409]
[1739846025534,0.003,96344.0,96343.0,0.25953725]
[1739846025746,0.003,96344.0,96343.0,0.10384425]
[1739846025948,0.003,96344.0,96343.0,0.23204425]
[1739846026362,0.002,96344.0,96343.0,0.23104425]
[1739846026976,0.0001703,96346.0,96344.0,0.0812]
[1739846027415,0.0001703,96346.0,96345.0,0.27261276]
[1739846027620,0.0001703,96346.0,96345.0,0.42830276]
[1739846027823,0.0011703,96346.0,96345.0,0.27261276]
[1739846028031,0.0001703,96346.0,96345.0,0.27261276]
[1739846028240,0.0011703,96346.0,96345.0,0.27261276]
[1739846028652,0.0001703,96346.0,96345.0,0.27261276]
[1739846028860,0.0011703,96346.0,96345.0,0.27661276]
[1739846029067,0.0021703,96346.0,96345.0,0.27761276]
[1739846029653,0.0021703,96346.0,96345.0,0.43330276]
[1739846030113,0.0011703,96346.0,96345.0,0.42930276]
[1739846030319,0.0021703,96346.0,96345.0,0.43330276]
[1739846030520,0.0021703,96346.0,96345.0,0.27761276]
[1739846033520,0.0021703,96346.0,96345.0,0.43330276]
[1739846034501,0.0021703,96346.0,96345.0,0.27761276]
[1739846035900,0.0021703,96346.0,96345.0,0.43330276]
[1739846036811,0.0021703,96346.0,96345.0,0.27761276]
[1739846037284,0.0021703,96346.0,96345.0,0.43330276]
[1739846043908,0.0021703,96346.0,96345.0,0.27761276]
[1739846045498,0.0021703,96346.0,96345.0,0.43330276]
[1739846046259,0.0021703,96346.0,96345.0,0.27761276]
[1739846046678,0.0021703,96346.0,96345.0,0.43330276]
[1739846047258,0.0021703,96346.0,96345.0,0.27761276]
[1739846047686,0.0021703,96346.0,96345.0,0.43330276]
[1739846048124,0.0021703,96346.0,96345.0,0.27761276]
[1739846049223,0.0021703,96346.0,96345.0,0.43330276]
[1739846049441,0.0021703,96346.0,96345.0,0.27761276]
[1739846049772,0.0021703,96346.0,96345.0,0.43330276]
[1739846051622,0.0001703,96346.0,96345.0,0.42830276]
[1739846051753,0.0001703,96346.0,96345.0,0.42964336]
[1739846051754,0.0011703,96346.0,96345.0,0.42964336]
[1739846052386,0.0011703,96346.0,96345.0,0.43364336]
[1739846052593,0.0021703,96346.0,96345.0,0.43364336]
[1739846055915,0.0021703,96346.0,96345.0,0.76214336]
[1739846065564,0.0021703,96346.0,96345.0,0.60645336]
[1739846065807,0.0021703,96346.0,96345.0,0.76214336]
[1739846066546,0.0021703,96346.0,96345.0,0.60645336]
[1739846066766,0.0021703,96346.0,96345.0,0.76214336]
[1739846068768,0.19509579,96361.0,96345.0,0.76214336]
[1739846069012,0.155668,96359.0,96346.0,0.25819165]
[1739846069229,0.155668,96359.0,96347.0,0.10250365]
[1739846070069,0.155669,96358.0,96347.0,0.10250365]
[1739846070297,0.19516865,96361.0,96347.0,0.10250365]
[1739846070551,0.02514748,96358.0,96348.0,0.04260911]
[1739846070778,0.155668,96359.0,96349.0,0.10250365]
[1739846072123,0.155668,96359.0,96349.0,0.10550365]
[1739846072371,7.286e-05,96361.0,96350.0,0.0753]
[1739846072612,7.286e-05,96361.0,96351.0,0.18315185]
[1739846073091,0.02621032,96361.0,96351.0,0.18315185]
[1739846073589,7.286e-05,96361.0,96351.0,0.18315185]
[1739846073816,7.286e-05,96361.0,96353.0,0.155677]
[1739846074059,7.286e-05,96361.0,96354.0,0.16537831]
[1739846074340,0.02564134,96361.0,96354.0,0.10250365]
[1739846074589,7.286e-05,96361.0,96354.0,0.10250365]
[1739846075480,0.02593221,96361.0,96354.0,0.10250365]
[1739846075683,7.286e-05,96361.0,96354.0,0.10250365]
[1739846075886,0.05780341,96366.0,96355.0,0.03853777]
[1739846076018,0.0001702,96361.0,96356.0,0.10250365]
[1739846078488,0.0001702,96361.0,96356.0,0.10450365]
[1739846078829,0.0001702,96361.0,96356.0,0.10650365]
[1739846082531,0.02608192,96361.0,96356.0,0.10650365]
[1739846082733,0.0001702,96361.0,96356.0,0.10650365]
[1739846084840,0.02510219,96361.0,96356.0,0.10650365]
[1739846085003,0.0001702,96361.0,96357.0,0.01818037]
[1739846085288,0.0001702,96361.0,96356.0,0.10650365]
[1739846085939,0.0001702,96361.0,96356.0,0.10450365]
[1739846086482,0.0001702,96361.0,96357.0,0.002]
[1739846087380,0.02507668,96361.0,96356.0,0.10450365]
[1739846087808,0.02507668,96361.0,96356.0,0.10650365]
[1739846088031,0.02507668,96361.0,96356.0,0.10450365]
[1739846088270,0.02507668,96361.0,96357.0,0.002]
[1739846088467,0.02507668,96361.0,96356.0,0.10450365]
[1739846089041,0.02507668,96361.0,96356.0,0.10650365]
[1739846089277,0.02507668,96361.0,96356.0,0.10250365]
[1739846089519,0.02507668,96361.0,96357.0,0.002]
[1739846090003,0.02507668,96361.0,96356.0,0.10250365]
[1739846091349,0.02507668,96361.0,96357.0,0.002]
[1739846091595,0.02507668,96361.0,96358.0,0.0812]
[1739846092264,0.02507668,96361.0,96360.0,0.234266]
[1739846092517,0.0001702,96361.0,96360.0,0.33676965]
[1739846092942,0.0001702,96361.0,96360.0,0.41677881]
[1739846094437,0.0001702,96361.0,96360.0,0.41877881]
[1739846095058,0.0001702,96361.0,96360.0,0.42077881]
[1739846096560,0.0001702,96361.0,96360.0,0.41077881]
[1739846097161,0.0001702,96361.0,96360.0,0.26511281]
[1739846099428,0.0001702,96361.0,96360.0,0.42077881]
[1739846100077,0.0001702,96361.0,96360.0,0.26511281]
[1739846101573,0.0001702,96361.0,96360.0,0.18510365]
[1739846103780,0.0001702,96361.0,96360.0,0.34076965]
[1739846104192,0.0001702,96361.0,96360.0,0.18510365]
[1739846111463,0.0001702,96361.0,96360.0,0.18544405]
[1739846112292,0.1558342,96361.0,96360.0,0.0043404]
[1739846112533,0.1558342,96361.0,96360.0,0.0023404]
[1739846112750,0.1558342,96361.0,96360.0,0.0043404]
[1739846112955,2.0994302,96361.0,96360.0,0.0043404]
[1739846113167,2.0994302,96361.0,96360.0,0.0023404]
[1739846113780,2.0994302,96361.0,96360.0,0.0013404]
[1739846113983,1.6932592,96361.0,96360.0,0.0013404]
[1739846114213,0.5806422,96361.0,96360.0,0.0003404]
[1739846114408,0.4228982,96361.0,96360.0,0.0003404]
[1739846114608,0.4228982,96361.0,96360.0,0.03325848]
[1739846114609,0.384162,96361.0,96360.0,0.03325848]
[1739846114814,0.001,96361.0,96360.0,0.03325848]
[1739846115511,0.001,96361.0,96360.0,0.0003404]
[1739846115925,0.02520173,96363.0,96360.0,0.0003404]
[1739846116159,0.02520173,96363.0,96360.0,0.0013404]
[1739846116360,0.155662,96363.0,96360.0,0.0023404]
[1739846116492,0.03192906,96363.0,96360.0,0.0023404]
[1739846116693,0.20775607,96366.0,96361.0,0.02382558]
[1739846116889,0.155661,96363.0,96360.0,0.0013404]
[1739846117093,0.155663,96362.0,96360.0,0.0013404]
[1739846117297,0.155663,96362.0,96360.0,0.0003404]
[1739846117500,0.155663,96362.0,96360.0,0.0013404]
[1739846117700,0.155663,96362.0,96360.0,0.0023404]
[1739846118385,0.155663,96362.0,96360.0,0.0013404]
[1739846118821,1.152659,96361.0,96360.0,0.0013404]
[1739846119026,1.152659,96361.0,96360.0,0.0003404]
[1739846119340,1.152659,96361.0,96360.0,0.0013404]
[1739846119743,1.152659,96361.0,96360.0,0.0003404]
[1739846120794,1.153659,96361.0,96360.0,0.0003404]
[1739846120999,1.153659,96361.0,96360.0,0.0013404]
[1739846121420,1.17418624,96361.0,96360.0,0.0003404]
[1739846123778,1.153659,96361.0,96360.0,0.0003404]
[1739846123972,1.1538292,96361.0,96360.0,0.0003404]
[1739846124196,1.3094932,96361.0,96360.0,0.0003404]
[1739846125173,0.1568342,96361.0,96360.0,0.0003404]
[1739846125553,2.62802685,96361.0,96360.0,0.0003404]
[1739846125790,2.5255232,96361.0,96360.0,0.0003404]
[1739846126007,0.155687,96347.0,96342.0,0.0003408]
[1739846126282,0.1538,96346.0,96321.0,0.0771]
[1739846126491,0.155727,96322.0,96321.0,0.0771]
[1739846126699,0.155747,96310.0,96305.0,0.3285]
[1739846126880,0.155736,96317.0,96306.0,0.25825565]
[1739846127100,0.28554099,96320.0,96307.0,0.1267]
[1739846127307,0.155735,96318.0,96309.0,0.0771]
[1739846127626,0.105016,96317.0,96310.0,0.10250365]
[1739846127820,0.28554099,96320.0,96310.0,0.10250365]
[1739846128025,0.155734,96318.0,96310.0,0.10250365]
[1739846128254,0.155734,96318.0,96310.0,0.10257651]
[1739846128384,0.155733,96319.0,96310.0,0.10257651]
[1739846128570,0.155733,96319.0,96310.0,0.10361471]
[1739846129021,0.01626466,96328.0,96310.0,0.10361471]
[1739846129197,0.207628,96326.0,96311.0,0.00103818]
[1739846129396,0.542003,96325.0,96312.0,0.10250365]
[1739846129598,0.207636,96323.0,96312.0,0.10250365]
[1739846129820,0.165453,96322.0,96312.0,0.10250365]
[1739846130048,0.165453,96322.0,96313.0,0.0818]
[1739846130239,0.155732,96319.0,96314.0,0.10250365]
[1739846130680,0.01626466,96328.0,96314.0,0.10250365]
[1739846130801,0.155734,96318.0,96314.0,0.10250365]
[1739846131231,0.01626466,96328.0,96314.0,0.10250365]
[1739846131458,0.155727,96323.0,96314.0,0.10250365]
[1739846131630,0.155727,96323.0,96315.0,0.0832]
[1739846131836,0.155728,96322.0,96315.0,0.1291]
[1739846132033,0.155731,96320.0,96315.0,0.1291]
[1739846132684,0.15,96329.0,96316.0,0.10250365]
[1739846132841,0.155723,96325.0,96317.0,0.0824]
[1739846133036,0.15,96338.0,96318.0,0.10250365]
[1739846133306,0.155727,96323.0,96318.0,0.10250365]
[1739846133505,0.15,96329.0,96318.0,0.10250365]
[1739846133680,1.86619,96328.0,96318.0,0.10250365]
[1739846133922,0.155732,96320.0,96318.0,0.10250365]
[1739846134300,0.207636,96323.0,96318.0,0.10250365]
[1739846134631,0.155729,96321.0,96318.0,0.10250365]
[1739846135012,0.207636,96323.0,96318.0,0.10250365]
[1739846135219,0.15573,96321.0,96318.0,0.10250365]
[1739846136035,0.15573,96321.0,96318.0,0.10450365]
[1739846136688,0.15573,96321.0,96318.0,0.10250365]
[1739846136861,0.15573,96321.0,96318.0,0.10850365]
[1739846137273,0.22390084,96323.0,96318.0,0.10650365]
[1739846137455,0.155732,96319.0,96318.0,0.10850365]
[1739846138294,0.155732,96319.0,96318.0,0.10650365]
[1739846138662,0.155732,96319.0,96318.0,0.10850365]
[1739846138840,0.15573,96321.0,96318.0,0.10450365]
[1739846139047,0.155732,96319.0,96318.0,0.10850365]
[1739846139757,0.207636,96322.0,96318.0,0.10450365]
[1739846139758,0.15573,96321.0,96318.0,0.10450365]
[1739846140121,0.15573,96320.0,96318.0,0.10850365]
[1739846141086,0.155729,96322.0,96318.0,0.10650365]
[1739846141289,0.155729,96322.0,96318.0,0.10850365]
[1739846141727,0.01626484,96323.0,96319.0,0.238932]
[1739846141929,0.01626484,96323.0,96319.0,0.0832]
[1739846142128,0.155729,96321.0,96319.0,0.0832]
[1739846143128,0.15573,96320.0,96319.0,0.0832]
[1739846143808,0.15573,96320.0,96319.0,0.0872]
[1739846144058,0.15573,96320.0,96319.0,0.004]
[1739846144257,0.2128298,96320.0,96319.0,0.006]
[1739846144484,2.0790198,96320.0,96319.0,0.004]
[1739846144770,2.02192,96320.0,96319.0,0.004]
[1739846145380,2.02192,96320.0,96319.0,0.006]
[1739846145740,2.02192,96320.0,96319.0,0.002]
[1739846146122,2.02192,96320.0,96319.0,0.005]
[1739846146601,1.86619,96320.0,96313.0,0.0001703]
[1739846146807,0.15574,96314.0,96313.0,0.0001703]
[1739846147018,2.02193,96314.0,96313.0,0.0001703]
[1739846148026,2.05305142,96314.0,96313.0,0.0001703]
[1739846148251,2.05305142,96314.0,96313.0,0.0021703]
[1739846149029,2.05305142,96314.0,96313.0,0.0031703]
[1739846149577,1.17527742,96314.0,96313.0,0.0021703]
[1739846149794,0.61437842,96314.0,96313.0,0.0051703]
[1739846150529,0.61437842,96314.0,96313.0,0.0001703]
[1739846150775,0.61437842,96314.0,96313.0,0.0021703]
[1739846151053,0.42422318,96314.0,96313.0,0.0041703]
[1739846151296,0.15574,96314.0,96313.0,0.0041703]
[1739846151568,0.983613,96314.0,96313.0,0.0041703]
[1739846152054,0.983613,96314.0,96313.0,0.0021703]
[1739846152310,0.983613,96314.0,96313.0,0.0061703]
[1739846152822,0.983613,96314.0,96313.0,0.0021703]
[1739846153076,0.98886064,96314.0,96313.0,0.0041703]
[1739846153312,0.96214064,96314.0,96313.0,0.0061703]
[1739846153553,0.96214064,96314.0,96313.0,0.0041703]
[1739846153815,0.76524764,96314.0,96313.0,0.0041703]
[1739846154075,0.70714464,96314.0,96313.0,0.0061703]
[1739846154313,0.03157064,96314.0,96313.0,0.0061703]
[1739846154564,0.18731064,96314.0,96313.0,0.0061703]
[1739846154826,0.0779574,96323.0,96314.0,0.0797]
[1739846155046,0.03189298,96315.0,96314.0,0.23544]
[1739846155276,0.155729,96321.0,96314.0,0.23544]
[1739846156212,0.155731,96320.0,96314.0,0.0797]
[1739846156408,0.155738,96315.0,96314.0,0.0827]
[1739846156565,0.155738,96315.0,96314.0,0.0847]
[1739846156792,0.155738,96315.0,96314.0,0.0827]
[1739846157212,0.155738,96315.0,96314.0,0.0847]
[1739846157411,0.155738,96315.0,96314.0,0.0827]
[1739846157619,0.155738,96315.0,96314.0,0.0847]
[1739846158164,0.155738,96315.0,96314.0,0.0797]
[1739846158368,0.155738,96315.0,96314.0,0.0827]
[1739846158587,0.155738,96315.0,96314.0,0.003]
[1739846158795,0.155738,96315.0,96313.0,0.0001703]
[1739846158796,0.15574,96314.0,96313.0,0.0001703]
[1739846159001,2.45213703,96314.0,96313.0,0.0001703]
[1739846160664,2.72493565,96314.0,96313.0,0.0001703]
[1739846160872,2.72493565,96314.0,96287.0,0.0766]
[1739846160873,0.309545,96311.0,96287.0,0.0766]
[1739846161074,2.524941,96311.0,96287.0,0.0766]
[1739846161281,2.62744465,96311.0,96287.0,0.0766]
[1739846161730,2.64371333,96311.0,96287.0,0.0766]
[1739846161920,2.74621698,96311.0,96287.0,0.0766]
[1739846162558,2.7339483,96311.0,96287.0,0.0766]
[1739846162993,2.7299483,96311.0,96287.0,0.0766]
[1739846163442,2.7329483,96311.0,96287.0,0.0766]
[1739846163616,2.7299483,96311.0,96287.0,0.0766]
[1739846164048,2.7329483,96311.0,96287.0,0.0766]
[1739846164219,2.7369483,96311.0,96287.0,0.0766]
[1739846164863,2.76493074,96311.0,96287.0,0.0766]
[1739846165113,2.76193074,96311.0,96287.0,0.0766]
[1739846166542,2.7329483,96311.0,96287.0,0.0766]
[1739846167033,2.7299483,96311.0,96287.0,0.0766]
[1739846167273,2.74921688,96311.0,96287.0,0.0766]
[1739846167562,2.74541688,96311.0,96287.0,0.0766]
[1739846168007,2.74941688,96311.0,96287.0,0.0766]
[1739846168577,2.74541688,96311.0,96287.0,0.0766]
[1739846168779,2.74941688,96311.0,96287.0,0.0766]
[1739846169181,2.74541688,96311.0,96287.0,0.0766]
[1739846169613,2.74941688,96311.0,96287.0,0.0766]
[1739846170056,2.74641688,96311.0,96287.0,0.0766]
[1739846170453,2.74941688,96311.0,96287.0,0.0766]
[1739846171736,2.74941688,96311.0,96310.0,0.00024316]
[1739846172606,2.7331483,96311.0,96310.0,0.00024316]
[1739846174347,2.7291483,96311.0,96310.0,0.00024316]
[1739846174733,2.7301483,96311.0,96310.0,0.00024316]
[1739846175084,2.7331483,96311.0,96310.0,0.00024316]
[1739846175643,2.74941698,96311.0,96310.0,0.00024316]
[1739846177893,2.78709305,96311.0,96310.0,0.00024316]
[1739846178713,2.48134805,96311.0,96310.0,0.00024316]
[1739846179100,2.63709305,96311.0,96310.0,0.00024316]
[1739846180887,3.04311618,96311.0,96310.0,0.00024316]